[Event "*** SCC Grand Prix: Titled Tuesday Blitz"]
[Site "Chess.com"]
[Date "2020.06.09"]
[Round "8"]
[White "HElissalt"]
[Black "parnali1611"]
[Result "1/2-1/2"]
[WhiteElo "2198"]
[BlackElo "2036"]
[TimeControl "180+1"]
[EndTime "10:33:36 PDT"]
[Termination "Game drawn by repetition"]

1. d4 {[%clk 0:02:46.4]} 1... d5 {[%clk 0:02:56.3]} 2. c4 {[%clk 0:02:43.8]}
2... e6 {[%clk 0:02:55.6]} 3. Nc3 {[%clk 0:02:43.2]} 3... Nf6 {[%clk 0:02:54.7]}
4. cxd5 {[%clk 0:02:43.2]} 4... exd5 {[%clk 0:02:53.7]} 5. Bg5 {[%clk
0:02:42.9]} 5... Be7 {[%clk 0:02:53.7]} 6. e3 {[%clk 0:02:42.8]} 6... c6 {[%clk
0:02:54.2]} 7. Qc2 {[%clk 0:02:42.9]} 7... Nbd7 {[%clk 0:02:51.8]} 8. Bd3 {[%clk
0:02:42.7]} 8... Nh5 {[%clk 0:02:48.4]} 9. Bxe7 {[%clk 0:02:39.2]} 9... Qxe7
{[%clk 0:02:48.9]} 10. O-O-O {[%clk 0:02:25.2]} 10... Nb6 {[%clk 0:02:41.1]} 11.
h3 {[%clk 0:02:23.2]} 11... Be6 {[%clk 0:02:35.2]} 12. g4 {[%clk 0:02:21.9]}
12... Nf6 {[%clk 0:02:35]} 13. Nf3 {[%clk 0:01:59.9]} 13... O-O-O {[%clk
0:02:33.2]} 14. Kb1 {[%clk 0:01:59]} 14... Kb8 {[%clk 0:02:32.9]} 15. Ne5 {[%clk
0:01:52.9]} 15... Rc8 {[%clk 0:02:27.3]} 16. f4 {[%clk 0:01:41.1]} 16... Ne8
{[%clk 0:02:20.3]} 17. f5 {[%clk 0:01:24.3]} 17... Bd7 {[%clk 0:02:19.2]} 18.
Qh2 {[%clk 0:01:12.8]} 18... Ka8 {[%clk 0:02:14.9]} 19. e4 {[%clk 0:01:05.1]}
19... f6 {[%clk 0:02:11.6]} 20. Nf3 {[%clk 0:00:57.3]} 20... dxe4 {[%clk
0:02:08.6]} 21. Bxe4 {[%clk 0:00:53.9]} 21... Nd6 {[%clk 0:02:06.8]} 22. Rhe1
{[%clk 0:00:54]} 22... Ndc4 {[%clk 0:02:03.6]} 23. Bxc6 {[%clk 0:00:36.2]} 23...
Qb4 {[%clk 0:01:58]} 24. Bxd7 {[%clk 0:00:35.4]} 24... Na3+ {[%clk 0:01:53.2]}
25. Ka1 {[%clk 0:00:33.7]} 25... Rxc3 {[%clk 0:01:52.8]} 26. bxc3 {[%clk
0:00:30.1]} 26... Qxc3+ {[%clk 0:01:50.6]} 27. Qb2 {[%clk 0:00:30.1]} 27... Nc2+
{[%clk 0:01:48.5]} 28. Kb1 {[%clk 0:00:30]} 28... Na3+ {[%clk 0:01:46.5]} 29.
Ka1 {[%clk 0:00:29.9]} 29... Nc2+ {[%clk 0:01:46.2]} 30. Kb1 {[%clk 0:00:30.1]}
30... Na3+ {[%clk 0:01:31.7]} 31. Ka1 {[%clk 0:00:29.5]} 1/2-1/2

[Event "*** SCC Grand Prix: Titled Tuesday Blitz"]
[Site "Chess.com"]
[Date "2020.06.09"]
[Round "8"]
[White "profofchess"]
[Black "aNaartjieZA"]
[Result "0-1"]
[WhiteElo "2439"]
[BlackElo "2586"]
[TimeControl "180+1"]
[EndTime "10:33:38 PDT"]
[Termination "aNaartjieZA won by resignation"]

1. e4 {[%clk 0:03:00.9]} 1... e6 {[%clk 0:03:00]} 2. d4 {[%clk 0:02:59.5]} 2...
d5 {[%clk 0:03:00.1]} 3. Nc3 {[%clk 0:02:59.8]} 3... Bb4 {[%clk 0:02:59.7]} 4.
exd5 {[%clk 0:02:57.7]} 4... exd5 {[%clk 0:03:00.6]} 5. Bd3 {[%clk 0:02:57.9]}
5... Nc6 {[%clk 0:03:00.4]} 6. Nf3 {[%clk 0:02:57.8]} 6... Bg4 {[%clk
0:02:59.9]} 7. O-O {[%clk 0:02:39.9]} 7... Nge7 {[%clk 0:02:55.7]} 8. h3 {[%clk
0:02:33.5]} 8... Bh5 {[%clk 0:02:54.4]} 9. a3 {[%clk 0:02:30.5]} 9... Bd6 {[%clk
0:02:53.7]} 10. Nb5 {[%clk 0:02:25.3]} 10... a6 {[%clk 0:02:53.4]} 11. Nxd6+
{[%clk 0:02:25.2]} 11... Qxd6 {[%clk 0:02:53.6]} 12. c3 {[%clk 0:02:21.4]} 12...
Bg6 {[%clk 0:02:47.2]} 13. Re1 {[%clk 0:02:18.7]} 13... O-O {[%clk 0:02:45.8]}
14. Bg5 {[%clk 0:01:58.8]} 14... f6 {[%clk 0:02:44.1]} 15. Bh4 {[%clk
0:01:57.3]} 15... Rae8 {[%clk 0:02:43.8]} 16. Bg3 {[%clk 0:01:54]} 16... Qd7
{[%clk 0:02:43.7]} 17. Nh4 {[%clk 0:01:44.6]} 17... Bxd3 {[%clk 0:02:42.4]} 18.
Qxd3 {[%clk 0:01:45.5]} 18... g5 {[%clk 0:02:41.7]} 19. Nf3 {[%clk 0:01:41.6]}
19... Ng6 {[%clk 0:02:40.2]} 20. b4 {[%clk 0:01:17.2]} 20... Nd8 {[%clk
0:02:13.2]} 21. c4 {[%clk 0:00:57.6]} 21... c6 {[%clk 0:02:09.7]} 22. c5 {[%clk
0:00:52.2]} 22... Ne6 {[%clk 0:02:00.9]} 23. Bd6 {[%clk 0:00:49]} 23... Nef4
{[%clk 0:02:00.4]} 24. Qf1 {[%clk 0:00:37]} 24... Rxe1 {[%clk 0:01:57.5]} 25.
Rxe1 {[%clk 0:00:36.3]} 25... Re8 {[%clk 0:01:57.6]} 26. Rxe8+ {[%clk
0:00:32.9]} 26... Qxe8 {[%clk 0:01:57.3]} 27. g3 {[%clk 0:00:33.5]} 27... Ne2+
{[%clk 0:01:57]} 28. Kg2 {[%clk 0:00:31]} 28... Qe4 {[%clk 0:01:57]} 29. Qd1
{[%clk 0:00:20.4]} 29... h5 {[%clk 0:01:51.5]} 30. Kf1 {[%clk 0:00:09.4]} 30...
Qxf3 {[%clk 0:01:51.1]} 0-1

[Event "*** SCC Grand Prix: Titled Tuesday Blitz"]
[Site "Chess.com"]
[Date "2020.06.09"]
[Round "8"]
[White "GjakanTati"]
[Black "StephenDedalus83"]
[Result "1-0"]
[WhiteElo "2610"]
[BlackElo "2731"]
[TimeControl "180+1"]
[EndTime "10:33:43 PDT"]
[Termination "GjakanTati won by resignation"]

1. d4 {[%clk 0:03:00.9]} 1... Nf6 {[%clk 0:02:59.1]} 2. c4 {[%clk 0:03:00.9]}
2... g6 {[%clk 0:02:59.7]} 3. Nc3 {[%clk 0:03:00.2]} 3... Bg7 {[%clk 0:03:00.3]}
4. e4 {[%clk 0:03:00.6]} 4... d6 {[%clk 0:03:00.9]} 5. Be2 {[%clk 0:03:00.9]}
5... O-O {[%clk 0:03:01.4]} 6. Bg5 {[%clk 0:03:01]} 6... Nbd7 {[%clk 0:03:00]}
7. Qd2 {[%clk 0:02:55.2]} 7... a6 {[%clk 0:02:59.7]} 8. Nf3 {[%clk 0:02:52.8]}
8... c5 {[%clk 0:02:59.5]} 9. d5 {[%clk 0:02:52.1]} 9... b5 {[%clk 0:02:59.5]}
10. cxb5 {[%clk 0:02:50.1]} 10... Qa5 {[%clk 0:02:59.3]} 11. a4 {[%clk
0:02:35.6]} 11... axb5 {[%clk 0:02:40.7]} 12. Bxb5 {[%clk 0:02:24.4]} 12... Ba6
{[%clk 0:02:31.9]} 13. Rd1 {[%clk 0:02:09.5]} 13... Bxb5 {[%clk 0:02:27.6]} 14.
axb5 {[%clk 0:02:10.4]} 14... Nb6 {[%clk 0:02:24.2]} 15. O-O {[%clk 0:02:07.2]}
15... Qb4 {[%clk 0:02:18.7]} 16. Qe2 {[%clk 0:02:00.2]} 16... Rfb8 {[%clk
0:02:08.4]} 17. e5 {[%clk 0:01:58.6]} 17... Ng4 {[%clk 0:01:44.6]} 18. Bxe7
{[%clk 0:01:45.5]} 18... Nxe5 {[%clk 0:01:15]} 19. Bxd6 {[%clk 0:01:42.2]} 19...
Nxf3+ {[%clk 0:01:14.8]} 20. Qxf3 {[%clk 0:01:40.5]} 20... Rc8 {[%clk
0:01:14.7]} 21. Be7 {[%clk 0:01:23.1]} 21... Qxb2 {[%clk 0:01:13.2]} 22. Ne4
{[%clk 0:01:22.8]} 22... f5 {[%clk 0:01:00.5]} 23. Nxc5 {[%clk 0:01:18.2]} 23...
Ra7 {[%clk 0:00:53.9]} 24. d6 {[%clk 0:01:04]} 24... Rxc5 {[%clk 0:00:53.2]} 25.
d7 {[%clk 0:01:03.9]} 25... Nxd7 {[%clk 0:00:53.1]} 26. Bxc5 {[%clk 0:01:03.3]}
26... Nxc5 {[%clk 0:00:52.9]} 27. Qd5+ {[%clk 0:01:03.2]} 27... Kh8 {[%clk
0:00:47.9]} 28. Qd8+ {[%clk 0:01:01.8]} 1-0

[Event "*** SCC Grand Prix: Titled Tuesday Blitz"]
[Site "Chess.com"]
[Date "2020.06.09"]
[Round "8"]
[White "Julianos82"]
[Black "Nikolaj_6"]
[Result "0-1"]
[WhiteElo "2384"]
[BlackElo "2564"]
[TimeControl "180+1"]
[EndTime "10:33:45 PDT"]
[Termination "Nikolaj_6 won by resignation"]

1. d4 {[%clk 0:03:00.9]} 1... Nf6 {[%clk 0:02:59.4]} 2. Nf3 {[%clk 0:03:00.6]}
2... g6 {[%clk 0:02:59.1]} 3. c4 {[%clk 0:03:00.3]} 3... Bg7 {[%clk 0:02:58.9]}
4. Nc3 {[%clk 0:03:00.9]} 4... O-O {[%clk 0:02:58.1]} 5. e4 {[%clk 0:03:00.4]}
5... d6 {[%clk 0:02:57.8]} 6. Be2 {[%clk 0:03:00.6]} 6... c5 {[%clk 0:02:57.9]}
7. d5 {[%clk 0:02:58.7]} 7... e6 {[%clk 0:02:57.5]} 8. O-O {[%clk 0:02:51.7]}
8... Re8 {[%clk 0:02:57.3]} 9. Qc2 {[%clk 0:02:38.3]} 9... exd5 {[%clk
0:02:54.3]} 10. cxd5 {[%clk 0:02:37.4]} 10... Bg4 {[%clk 0:02:51.6]} 11. h3
{[%clk 0:02:33.2]} 11... Bxf3 {[%clk 0:02:44.3]} 12. Bxf3 {[%clk 0:02:34.1]}
12... Nbd7 {[%clk 0:02:43.6]} 13. Bg5 {[%clk 0:02:24.8]} 13... a6 {[%clk
0:02:40.7]} 14. a4 {[%clk 0:02:23.9]} 14... Rc8 {[%clk 0:02:40]} 15. Rae1 {[%clk
0:01:54.4]} 15... h6 {[%clk 0:02:38.8]} 16. Bh4 {[%clk 0:01:53.6]} 16... Qa5
{[%clk 0:02:35.9]} 17. Bg3 {[%clk 0:01:45.1]} 17... Ne5 {[%clk 0:02:33.1]} 18.
Be2 {[%clk 0:01:39.4]} 18... g5 {[%clk 0:02:31.8]} 19. f4 {[%clk 0:01:32]} 19...
gxf4 {[%clk 0:02:31.2]} 20. Bxf4 {[%clk 0:01:24.3]} 20... c4 {[%clk 0:02:29.9]}
21. Qd2 {[%clk 0:01:20.1]} 21... Kh7 {[%clk 0:02:01]} 22. Kh1 {[%clk 0:01:17.2]}
22... Nfd7 {[%clk 0:01:41.6]} 23. Bg4 {[%clk 0:01:15.8]} 23... Nxg4 {[%clk
0:01:40.3]} 24. hxg4 {[%clk 0:01:16.7]} 24... Qd8 {[%clk 0:01:32.9]} 25. Bxd6
{[%clk 0:01:11.2]} 25... Qh4+ {[%clk 0:01:31.9]} 26. Kg1 {[%clk 0:01:10.2]}
26... Ne5 {[%clk 0:01:25.9]} 27. Qf4 {[%clk 0:01:00.9]} 27... Nxg4 {[%clk
0:01:21.2]} 28. Qf5+ {[%clk 0:00:55.4]} 28... Kh8 {[%clk 0:01:20.2]} 29. Bf4
{[%clk 0:00:40.2]} 29... Bd4+ {[%clk 0:01:17.7]} 0-1

[Event "*** SCC Grand Prix: Titled Tuesday Blitz"]
[Site "Chess.com"]
[Date "2020.06.09"]
[Round "8"]
[White "Panterov"]
[Black "DishonorOnYourCow"]
[Result "1-0"]
[WhiteElo "2171"]
[BlackElo "2273"]
[TimeControl "180+1"]
[EndTime "10:33:50 PDT"]
[Termination "Panterov won by resignation"]

1. e4 {[%clk 0:03:00.9]} 1... c5 {[%clk 0:02:59.6]} 2. b3 {[%clk 0:03:00.3]}
2... d6 {[%clk 0:02:59.5]} 3. Bb2 {[%clk 0:03:00.3]} 3... Nc6 {[%clk 0:03:00]}
4. Nc3 {[%clk 0:03:00.3]} 4... Nf6 {[%clk 0:03:00.5]} 5. g3 {[%clk 0:03:00.1]}
5... g6 {[%clk 0:03:00.9]} 6. Bg2 {[%clk 0:02:57.8]} 6... Bg7 {[%clk 0:03:01.4]}
7. Nge2 {[%clk 0:02:58.4]} 7... O-O {[%clk 0:03:01.9]} 8. O-O {[%clk 0:02:59]}
8... a6 {[%clk 0:03:01.2]} 9. f4 {[%clk 0:02:58.8]} 9... Rb8 {[%clk 0:03:01.2]}
10. a4 {[%clk 0:02:57]} 10... Qc7 {[%clk 0:02:54.5]} 11. Nd5 {[%clk 0:02:52.9]}
11... Nxd5 {[%clk 0:02:51.2]} 12. Bxg7 {[%clk 0:02:53.8]} 12... Kxg7 {[%clk
0:02:51.4]} 13. exd5 {[%clk 0:02:53.1]} 13... Nd8 {[%clk 0:02:49]} 14. c4 {[%clk
0:02:51]} 14... b5 {[%clk 0:02:47.2]} 15. d4 {[%clk 0:02:51.1]} 15... bxc4
{[%clk 0:02:45.2]} 16. bxc4 {[%clk 0:02:49.9]} 16... Rb4 {[%clk 0:02:43.6]} 17.
Rc1 {[%clk 0:02:36.4]} 17... Bg4 {[%clk 0:02:42.2]} 18. Bf3 {[%clk 0:02:35.7]}
18... Bxf3 {[%clk 0:02:41.4]} 19. Rxf3 {[%clk 0:02:36.3]} 19... Nb7 {[%clk
0:02:39]} 20. f5 {[%clk 0:02:22.6]} 20... cxd4 {[%clk 0:02:34.6]} 21. Qxd4+
{[%clk 0:02:13]} 21... Kg8 {[%clk 0:02:33.8]} 22. fxg6 {[%clk 0:02:12.2]} 22...
hxg6 {[%clk 0:02:34.7]} 23. h4 {[%clk 0:02:02.4]} 23... Qc5 {[%clk 0:02:34.6]}
24. h5 {[%clk 0:02:00.3]} 24... Qxd4+ {[%clk 0:02:34.1]} 25. Nxd4 {[%clk
0:02:00.5]} 25... Rxa4 {[%clk 0:02:30.4]} 26. Nc6 {[%clk 0:01:58.6]} 26... e6
{[%clk 0:02:10]} 27. hxg6 {[%clk 0:01:44.9]} 27... exd5 {[%clk 0:02:07.3]} 28.
Rcf1 {[%clk 0:01:36.3]} 28... Rxc4 {[%clk 0:01:52.1]} 29. Ne7+ {[%clk
0:01:36.3]} 29... Kh8 {[%clk 0:01:23.2]} 30. Rxf7 {[%clk 0:01:37.2]} 30... Rxf7
{[%clk 0:00:31.6]} 31. Rxf7 {[%clk 0:01:38.1]} 31... Rc1+ {[%clk 0:00:18]} 32.
Kg2 {[%clk 0:01:37.3]} 32... Rc2+ {[%clk 0:00:18.4]} 33. Kh3 {[%clk 0:01:37.5]}
1-0

[Event "*** SCC Grand Prix: Titled Tuesday Blitz"]
[Site "Chess.com"]
[Date "2020.06.09"]
[Round "8"]
[White "KNVB"]
[Black "Aradej"]
[Result "0-1"]
[WhiteElo "2678"]
[BlackElo "2506"]
[TimeControl "180+1"]
[EndTime "10:33:54 PDT"]
[Termination "Aradej won on time"]

1. d4 {[%clk 0:03:00.8]} 1... d6 {[%clk 0:03:00]} 2. c4 {[%clk 0:03:00.9]} 2...
e5 {[%clk 0:03:00.2]} 3. d5 {[%clk 0:03:00.4]} 3... a5 {[%clk 0:02:57.5]} 4. e4
{[%clk 0:02:59.7]} 4... g6 {[%clk 0:02:56.1]} 5. Bd3 {[%clk 0:02:59.6]} 5... Bh6
{[%clk 0:02:55.8]} 6. Bxh6 {[%clk 0:02:59]} 6... Nxh6 {[%clk 0:02:55.8]} 7. Qd2
{[%clk 0:02:59.9]} 7... Ng8 {[%clk 0:02:50.7]} 8. Nc3 {[%clk 0:03:00.5]} 8...
Kf8 {[%clk 0:02:50.5]} 9. Nge2 {[%clk 0:03:00.5]} 9... Kg7 {[%clk 0:02:50.7]}
10. O-O {[%clk 0:03:01.3]} 10... Nd7 {[%clk 0:02:49.8]} 11. h3 {[%clk
0:02:59.6]} 11... Ngf6 {[%clk 0:02:43.7]} 12. b3 {[%clk 0:02:57]} 12... Rf8
{[%clk 0:02:41.6]} 13. a3 {[%clk 0:02:53.5]} 13... Nc5 {[%clk 0:02:40.4]} 14.
Bc2 {[%clk 0:02:51]} 14... Nh5 {[%clk 0:02:37.4]} 15. b4 {[%clk 0:02:46.9]}
15... axb4 {[%clk 0:02:37.2]} 16. axb4 {[%clk 0:02:47.8]} 16... Rxa1 {[%clk
0:02:36.8]} 17. Rxa1 {[%clk 0:02:47.2]} 17... Na6 {[%clk 0:02:35.7]} 18. Rb1
{[%clk 0:02:40.8]} 18... Qh4 {[%clk 0:02:34.5]} 19. Qe3 {[%clk 0:01:50.2]} 19...
f5 {[%clk 0:02:19.2]} 20. Bd3 {[%clk 0:01:34]} 20... f4 {[%clk 0:02:16.4]} 21.
Qf3 {[%clk 0:01:34.1]} 21... g5 {[%clk 0:02:13.6]} 22. Bc2 {[%clk 0:00:12.3]}
22... g4 {[%clk 0:02:12.2]} 23. hxg4 {[%clk 0:00:03.2]} 23... Bxg4 {[%clk
0:02:11.1]} 24. g3 {[%clk 0:00:03.8]} 24... Qg5 {[%clk 0:01:54.3]} 25. Qh1
{[%clk 0:00:04]} 25... fxg3 {[%clk 0:01:51.3]} 26. Nxg3 {[%clk 0:00:02.2]} 26...
Nxg3 {[%clk 0:01:50.3]} 27. Qg2 {[%clk 0:00:01.7]} 27... Rf3 {[%clk 0:01:31.9]}
0-1

[Event "*** SCC Grand Prix: Titled Tuesday Blitz"]
[Site "Chess.com"]
[Date "2020.06.09"]
[Round "8"]
[White "Playgood28"]
[Black "AttilaTurzo"]
[Result "0-1"]
[WhiteElo "2258"]
[BlackElo "2482"]
[TimeControl "180+1"]
[EndTime "10:33:57 PDT"]
[Termination "AttilaTurzo won by resignation"]

1. d4 {[%clk 0:03:00.9]} 1... Nf6 {[%clk 0:02:59.6]} 2. c4 {[%clk 0:03:00.8]}
2... g6 {[%clk 0:02:59.4]} 3. Nc3 {[%clk 0:03:00.7]} 3... d5 {[%clk 0:02:59.8]}
4. e3 {[%clk 0:03:00]} 4... Bg7 {[%clk 0:02:59.3]} 5. Nf3 {[%clk 0:03:00.2]}
5... O-O {[%clk 0:02:59.9]} 6. b4 {[%clk 0:03:00.1]} 6... a5 {[%clk 0:02:54]} 7.
b5 {[%clk 0:02:59.4]} 7... c6 {[%clk 0:02:26.9]} 8. bxc6 {[%clk 0:02:57.9]} 8...
bxc6 {[%clk 0:02:25.3]} 9. Ba3 {[%clk 0:02:57.3]} 9... Ba6 {[%clk 0:02:20.5]}
10. Rc1 {[%clk 0:02:55.4]} 10... Nbd7 {[%clk 0:02:18.5]} 11. Be2 {[%clk
0:02:54.1]} 11... Nb6 {[%clk 0:02:16]} 12. cxd5 {[%clk 0:02:51.5]} 12... cxd5
{[%clk 0:02:08.5]} 13. Bxa6 {[%clk 0:02:43]} 13... Rxa6 {[%clk 0:02:09.4]} 14.
Ne5 {[%clk 0:02:42.1]} 14... Re8 {[%clk 0:02:00.6]} 15. Qd3 {[%clk 0:02:21.7]}
15... Ra8 {[%clk 0:01:53.3]} 16. Nb5 {[%clk 0:01:59.6]} 16... Rc8 {[%clk
0:01:29.2]} 17. O-O {[%clk 0:01:53]} 17... Ne4 {[%clk 0:01:25]} 18. f3 {[%clk
0:01:18.8]} 18... Nd6 {[%clk 0:01:18.2]} 19. Bxd6 {[%clk 0:00:57.9]} 19... exd6
{[%clk 0:01:19.1]} 20. Nc6 {[%clk 0:00:57.3]} 20... Qd7 {[%clk 0:01:15.7]} 21.
Nxa5 {[%clk 0:00:41.4]} 21... Ra8 {[%clk 0:01:08.2]} 22. Nb3 {[%clk 0:00:22.3]}
22... Nc4 {[%clk 0:01:07.2]} 23. e4 {[%clk 0:00:19.1]} 23... Qxb5 {[%clk
0:01:07.1]} 0-1

[Event "*** SCC Grand Prix: Titled Tuesday Blitz"]
[Site "Chess.com"]
[Date "2020.06.09"]
[Round "8"]
[White "KaterinaMiroshnik"]
[Black "Pomegranate988"]
[Result "0-1"]
[WhiteElo "2428"]
[BlackElo "2567"]
[TimeControl "180+1"]
[EndTime "10:34:06 PDT"]
[Termination "Pomegranate988 won by resignation"]

1. d4 {[%clk 0:02:55.4]} 1... Nf6 {[%clk 0:02:58.9]} 2. Nf3 {[%clk 0:02:55.6]}
2... g6 {[%clk 0:02:59]} 3. c3 {[%clk 0:02:55.6]} 3... Bg7 {[%clk 0:02:58.9]} 4.
g3 {[%clk 0:02:56.5]} 4... O-O {[%clk 0:02:58.8]} 5. Bg2 {[%clk 0:02:57.4]} 5...
d6 {[%clk 0:02:58.7]} 6. O-O {[%clk 0:02:58.3]} 6... Nbd7 {[%clk 0:02:58.9]} 7.
Nbd2 {[%clk 0:02:58.8]} 7... e5 {[%clk 0:02:58.9]} 8. e4 {[%clk 0:02:59.7]} 8...
Qe7 {[%clk 0:02:56.4]} 9. Re1 {[%clk 0:02:59.8]} 9... Rd8 {[%clk 0:02:55.1]} 10.
d5 {[%clk 0:02:59.8]} 10... Ne8 {[%clk 0:02:47.7]} 11. Nc4 {[%clk 0:02:56.7]}
11... a5 {[%clk 0:02:30.4]} 12. a4 {[%clk 0:02:55.7]} 12... b6 {[%clk
0:02:29.1]} 13. Be3 {[%clk 0:02:52.7]} 13... f5 {[%clk 0:02:28.6]} 14. Ng5
{[%clk 0:02:44.2]} 14... Ndf6 {[%clk 0:02:26.2]} 15. exf5 {[%clk 0:02:39.3]}
15... gxf5 {[%clk 0:02:24]} 16. Ne6 {[%clk 0:02:39.6]} 16... Bxe6 {[%clk
0:02:21.6]} 17. dxe6 {[%clk 0:02:39.7]} 17... e4 {[%clk 0:02:18]} 18. f3 {[%clk
0:02:32]} 18... d5 {[%clk 0:02:16.6]} 19. Ne5 {[%clk 0:02:30.2]} 19... Qxe6
{[%clk 0:02:16.3]} 20. f4 {[%clk 0:02:27.2]} 20... Nd7 {[%clk 0:02:09.5]} 21.
Nxd7 {[%clk 0:02:20.2]} 21... Rxd7 {[%clk 0:02:09.6]} 22. Bd4 {[%clk 0:02:21.1]}
22... c5 {[%clk 0:02:07.6]} 23. Bxg7 {[%clk 0:02:21.2]} 23... Kxg7 {[%clk
0:02:06.9]} 24. g4 {[%clk 0:02:19]} 24... Nf6 {[%clk 0:02:03.1]} 25. g5 {[%clk
0:02:09.8]} 25... Ng8 {[%clk 0:01:56.2]} 26. Bh3 {[%clk 0:02:09.3]} 26... Ne7
{[%clk 0:01:53.4]} 27. Kh1 {[%clk 0:01:58]} 27... Ng6 {[%clk 0:01:51.4]} 28. Qd2
{[%clk 0:01:53.3]} 28... d4 {[%clk 0:01:48.9]} 29. Rad1 {[%clk 0:01:42]} 29...
Rad8 {[%clk 0:01:46.2]} 30. Qf2 {[%clk 0:01:33]} 30... e3 {[%clk 0:01:40]} 31.
Qc2 {[%clk 0:01:24.9]} 31... Rf7 {[%clk 0:01:36.1]} 32. cxd4 {[%clk 0:01:22.5]}
32... cxd4 {[%clk 0:01:34.7]} 33. Rxd4 {[%clk 0:01:02.4]} 33... Rxd4 {[%clk
0:01:32.4]} 34. Qc3 {[%clk 0:01:02.4]} 34... Rd7 {[%clk 0:01:25.8]} 35. Rxe3
{[%clk 0:00:59.8]} 35... Qc4 {[%clk 0:01:22.6]} 36. Qxc4 {[%clk 0:00:53.8]}
36... Rxc4 {[%clk 0:01:22.6]} 37. Bxf5 {[%clk 0:00:54.7]} 37... Rd1+ {[%clk
0:01:21.5]} 38. Kg2 {[%clk 0:00:54.7]} 38... Nxf4+ {[%clk 0:01:21.5]} 0-1

[Event "*** SCC Grand Prix: Titled Tuesday Blitz"]
[Site "Chess.com"]
[Date "2020.06.09"]
[Round "8"]
[White "SantoBlue"]
[Black "Vuk2000"]
[Result "0-1"]
[WhiteElo "2778"]
[BlackElo "2646"]
[TimeControl "180+1"]
[EndTime "10:34:12 PDT"]
[Termination "Vuk2000 won by resignation"]

1. Nf3 {[%clk 0:03:00.9]} 1... Nf6 {[%clk 0:02:59.8]} 2. c4 {[%clk 0:02:59.3]}
2... e6 {[%clk 0:02:59.8]} 3. b3 {[%clk 0:02:58.5]} 3... d5 {[%clk 0:03:00]} 4.
Bb2 {[%clk 0:02:58.7]} 4... Be7 {[%clk 0:03:00]} 5. g3 {[%clk 0:02:58.6]} 5...
O-O {[%clk 0:03:00.5]} 6. Bg2 {[%clk 0:02:58.9]} 6... a5 {[%clk 0:03:01.1]} 7.
O-O {[%clk 0:02:56.4]} 7... c6 {[%clk 0:02:59.9]} 8. d3 {[%clk 0:02:53.9]} 8...
b6 {[%clk 0:02:59.3]} 9. Nbd2 {[%clk 0:02:52.5]} 9... a4 {[%clk 0:02:57.9]} 10.
bxa4 {[%clk 0:02:46.6]} 10... Nbd7 {[%clk 0:02:50.9]} 11. Nb3 {[%clk 0:02:35.4]}
11... Bb7 {[%clk 0:02:29.2]} 12. cxd5 {[%clk 0:02:25]} 12... cxd5 {[%clk
0:02:25.2]} 13. Ne5 {[%clk 0:02:20.9]} 13... Rxa4 {[%clk 0:02:21.8]} 14. Nd4
{[%clk 0:02:15.9]} 14... Qa8 {[%clk 0:02:14.1]} 15. Nxd7 {[%clk 0:02:15.9]}
15... Nxd7 {[%clk 0:02:13.8]} 16. Qb3 {[%clk 0:01:47.7]} 16... Rb4 {[%clk
0:02:02.2]} 17. Qc2 {[%clk 0:01:47.3]} 17... Rc8 {[%clk 0:02:01.4]} 18. Qd2
{[%clk 0:01:47.1]} 18... Bf6 {[%clk 0:02:01.8]} 19. Nb3 {[%clk 0:01:40.1]} 19...
Ra4 {[%clk 0:01:57.8]} 20. Bxf6 {[%clk 0:01:39.4]} 20... Nxf6 {[%clk 0:01:57.6]}
21. h3 {[%clk 0:01:34.3]} 21... d4 {[%clk 0:01:43.8]} 22. Bxb7 {[%clk
0:01:31.4]} 22... Qxb7 {[%clk 0:01:44.7]} 23. Rac1 {[%clk 0:01:30.7]} 23... Rca8
{[%clk 0:01:43.8]} 24. Rc2 {[%clk 0:01:30.7]} 24... Nd5 {[%clk 0:01:42.3]} 25.
Rfc1 {[%clk 0:01:26.9]} 25... h6 {[%clk 0:01:35.6]} 26. Qe1 {[%clk 0:01:12.9]}
26... e5 {[%clk 0:01:29.9]} 27. e3 {[%clk 0:01:05.3]} 27... dxe3 {[%clk
0:01:24.2]} 28. fxe3 {[%clk 0:01:05.2]} 28... Rxa2 {[%clk 0:01:24.8]} 29. Qf2
{[%clk 0:01:01.7]} 29... Nb4 {[%clk 0:01:10.7]} 30. Rxa2 {[%clk 0:00:43.8]}
30... Rxa2 {[%clk 0:01:11.6]} 31. Qf1 {[%clk 0:00:43.4]} 31... Nxd3 {[%clk
0:01:09.8]} 32. Rd1 {[%clk 0:00:43.3]} 32... Rf2 {[%clk 0:01:09.8]} 33. Qxf2
{[%clk 0:00:40.5]} 33... Nxf2 {[%clk 0:01:10.7]} 34. Kxf2 {[%clk 0:00:41.4]}
34... Qc8 {[%clk 0:01:09.7]} 35. Nd2 {[%clk 0:00:40]} 35... Qf5+ {[%clk
0:01:06.7]} 36. Ke2 {[%clk 0:00:38.2]} 36... Qxh3 {[%clk 0:01:06.8]} 37. Ne4
{[%clk 0:00:38]} 37... Qg4+ {[%clk 0:01:06.2]} 38. Kd3 {[%clk 0:00:38]} 38...
Qxd1+ {[%clk 0:01:06]} 0-1

[Event "*** SCC Grand Prix: Titled Tuesday Blitz"]
[Site "Chess.com"]
[Date "2020.06.09"]
[Round "8"]
[White "Siniauski"]
[Black "amiralfio"]
[Result "1-0"]
[WhiteElo "2510"]
[BlackElo "2368"]
[TimeControl "180+1"]
[EndTime "10:34:12 PDT"]
[Termination "Siniauski won by checkmate"]

1. e4 {[%clk 0:02:59.6]} 1... e5 {[%clk 0:02:58]} 2. Nf3 {[%clk 0:02:59.5]} 2...
Nc6 {[%clk 0:02:58.2]} 3. Bb5 {[%clk 0:02:58.5]} 3... a6 {[%clk 0:02:57.5]} 4.
Ba4 {[%clk 0:02:54.1]} 4... Nf6 {[%clk 0:02:57.1]} 5. O-O {[%clk 0:02:44.8]}
5... Bc5 {[%clk 0:02:56.5]} 6. Re1 {[%clk 0:02:40.6]} 6... b5 {[%clk 0:02:54.8]}
7. Bb3 {[%clk 0:02:40]} 7... d6 {[%clk 0:02:52.5]} 8. c3 {[%clk 0:02:39.2]} 8...
Bb6 {[%clk 0:02:47.1]} 9. h3 {[%clk 0:02:39.2]} 9... O-O {[%clk 0:02:45.5]} 10.
d4 {[%clk 0:02:38]} 10... exd4 {[%clk 0:02:31.5]} 11. cxd4 {[%clk 0:02:38.9]}
11... d5 {[%clk 0:02:27.9]} 12. e5 {[%clk 0:02:33.4]} 12... Ne4 {[%clk
0:02:26.7]} 13. Nc3 {[%clk 0:02:30.7]} 13... Nxc3 {[%clk 0:02:18.6]} 14. bxc3
{[%clk 0:02:31.6]} 14... Bf5 {[%clk 0:02:15]} 15. Bf4 {[%clk 0:02:12.6]} 15...
Na5 {[%clk 0:02:11]} 16. Bc2 {[%clk 0:02:05.9]} 16... Bxc2 {[%clk 0:02:07.5]}
17. Qxc2 {[%clk 0:02:06.8]} 17... Nc4 {[%clk 0:01:53.5]} 18. Ng5 {[%clk
0:02:05.8]} 18... g6 {[%clk 0:01:49.4]} 19. e6 {[%clk 0:02:05.8]} 19... Qf6
{[%clk 0:01:36.6]} 20. exf7+ {[%clk 0:01:52.1]} 20... Kh8 {[%clk 0:01:30.9]} 21.
g3 {[%clk 0:01:26.1]} 21... h6 {[%clk 0:01:20.5]} 22. Re6 {[%clk 0:01:19.2]}
22... Qf5 {[%clk 0:01:08.9]} 23. Qxf5 {[%clk 0:00:57.7]} 23... gxf5 {[%clk
0:01:09.8]} 24. Rxh6+ {[%clk 0:00:57.8]} 24... Kg7 {[%clk 0:01:09.2]} 25. Rh7+
{[%clk 0:00:58.2]} 25... Kg6 {[%clk 0:00:39.4]} 26. Re1 {[%clk 0:00:51.5]} 26...
Rae8 {[%clk 0:00:36.6]} 27. Rxe8 {[%clk 0:00:48.2]} 27... Rxe8 {[%clk
0:00:37.5]} 28. fxe8=Q+ {[%clk 0:00:48.5]} 28... Kf6 {[%clk 0:00:35.4]} 29. Qe6#
{[%clk 0:00:49.2]} 1-0